bitfinex-derivatives/quotes_SOLF0:USTF0_20250706
["timestamp","ask_amount","ask_price","bid_price","bid_amount"]
[1751797988963,6.7801,147.46,147.42,49.18]
[1751797989963,6.7804,147.45,147.42,49.18]
[1751797993064,6.7808,147.44,147.42,49.18]
[1751797997272,6.7808,147.44,147.43,202.4]
[1751797997571,6.7808,147.44,147.42,49.18]
[1751798001277,6.7804,147.45,147.42,55.9615]
[1751798012084,49.18,147.52,147.42,49.18]
[1751798012581,6.7793,147.48,147.44,6.7804]
[1751798012778,49.18,147.52,147.44,6.7804]
[1751798013684,6.7792,147.48,147.44,6.7804]
[1751798015386,6.7786,147.49,147.42,49.18]
[1751798015986,6.7781,147.5,147.46,6.7795]
[1751798016188,49.18,147.52,147.46,6.7795]
[1751798016382,49.18,147.52,147.42,49.18]
[1751798017590,6.7787,147.49,147.45,6.7799]
[1751798017887,6.7787,147.49,147.42,49.18]
[1751798018787,6.7781,147.5,147.46,6.7794]
[1751798018987,49.18,147.52,147.46,6.7794]
[1751798019187,6.7787,147.49,147.46,6.7794]
[1751798028994,6.7787,147.49,147.43,2.4123]
[1751798029887,6.7787,147.49,147.46,6.7798]
[1751798037195,6.7789,147.48,147.45,6.7801]
[1751798037400,9.45701005,147.53,147.42,49.18]
[1751798037602,4.438407,147.52,147.42,49.18]
[1751798037897,6.7792,147.48,147.44,6.7805]
[1751798038300,6.7792,147.48,147.45,6.7802]
[1751798039406,6.7786,147.49,147.45,6.7802]
[1751798039604,4.43877928,147.48,147.45,6.7802]
[1751798039902,4.7636,147.51,147.45,6.7802]
[1751798040109,12.55133034,147.5,147.45,6.7802]
[1751798040304,12.55133034,147.49,147.45,6.7802]
[1751798040607,4.43877926,147.48,147.45,6.7802]
[1751798040907,4.7636,147.51,147.45,6.7802]
[1751798041208,12.55148151,147.5,147.45,6.7802]
[1751798041408,6.7791,147.48,147.45,6.7802]
[1751798045609,6.7793,147.47,147.45,6.7802]
[1751798046519,6.7793,147.47,147.44,6.7805]
[1751798048521,6.7803,147.45,147.42,49.18]
[1751798048725,14.22061005,147.51,147.42,49.18]
[1751798048926,22.00799389,147.5,147.42,49.18]
[1751798049219,6.7801,147.46,147.43,6.7809]
[1751798052820,6.7803,147.45,147.43,6.7809]
[1751798053632,6.7803,147.45,147.42,55.9614]
[1751798060025,6.7807,147.44,147.42,49.18]
[1751798060425,11.66381005,147.49,147.42,49.18]
[1751798060631,9.45701005,147.47,147.39,6.7827]
[1751798060833,17.24125682,147.46,147.38,47.66]
[1751798061025,12.54765682,147.45,147.38,47.66]
[1751798061325,6.782,147.42,147.38,54.4434]
[1751798061523,14.15061005,147.46,147.38,47.66]
[1751798061732,12.54360462,147.45,147.38,47.66]
[1751798061931,12.54360462,147.44,147.38,47.66]
[1751798062132,12.54360462,147.43,147.38,47.66]
[1751798062329,6.7824,147.41,147.38,47.66]
[1751798062730,4.82983208,147.4,147.38,47.66]
[1751798062929,2.3228,147.44,147.38,47.66]
[1751798063233,17.61941609,147.43,147.38,47.66]
[1751798063531,6.7824,147.41,147.38,47.66]
[1751798065632,6.7818,147.42,147.38,54.4433]
[1751798066432,6.7821,147.41,147.38,54.4433]
[1751798069738,2.3228,147.44,147.38,47.66]
[1751798070036,4.6936,147.46,147.38,47.66]
[1751798070438,6.7805,147.45,147.42,6.7814]
[1751798071838,6.7799,147.46,147.43,6.7811]
[1751798072038,4.75205006,147.45,147.43,6.7811]
[1751798072239,6.7799,147.46,147.43,6.7811]
[1751798072438,4.75230003,147.45,147.43,6.7811]
[1751798072738,6.7799,147.46,147.43,6.7811]
[1751798072937,4.75243148,147.45,147.43,6.7811]
[1751798073138,6.7799,147.46,147.43,6.7811]
[1751798073340,4.75243148,147.45,147.43,6.7811]
[1751798073535,6.7799,147.46,147.43,6.7811]
[1751798073838,4.75285974,147.45,147.43,6.7811]
[1751798074037,6.7799,147.46,147.43,6.7811]
[1751798074237,4.75285974,147.45,147.43,6.7811]
[1751798074441,6.7799,147.46,147.43,6.7811]
[1751798074638,4.80911927,147.45,147.43,6.7811]
[1751798074839,4.80911927,147.44,147.43,6.7811]
[1751798075443,6.7799,147.46,147.43,6.7811]
[1751798075638,4.80915921,147.45,147.43,6.7811]
[1751798075838,6.7799,147.46,147.43,6.7811]
[1751798076039,4.80915921,147.45,147.43,6.7811]
[1751798076240,6.7799,147.46,147.43,6.7811]
[1751798076542,4.80951981,147.45,147.43,6.7811]
[1751798076737,6.7799,147.46,147.43,6.7811]
[1751798076933,4.80951981,147.45,147.43,6.7811]
[1751798077143,6.7799,147.46,147.43,6.7811]
[1751798077444,4.80951981,147.45,147.43,6.7811]
[1751798077637,6.7799,147.46,147.43,6.7811]
[1751798077938,4.80990776,147.45,147.43,6.7811]
[1751798078137,6.7799,147.46,147.43,6.7811]
[1751798078342,4.80990776,147.45,147.43,6.7811]
[1751798078542,4.80990776,147.44,147.43,6.7811]
[1751798079144,4.80990776,147.44,147.41,198.7]
[1751798079444,4.6843,147.5,147.41,198.7]
[1751798079640,6.7806,147.45,147.41,205.4818]
[1751798079841,4.81129944,147.44,147.41,205.4818]
[1751798080041,6.7806,147.45,147.41,205.4818]
[1751798080343,4.82246634,147.44,147.41,205.4818]
[1751798080543,6.7806,147.45,147.41,205.4818]
[1751798080745,4.82292667,147.44,147.41,205.4818]
[1751798081045,6.7806,147.45,147.41,205.4818]
[1751798081244,4.82265116,147.44,147.41,205.4818]
[1751798081447,6.7806,147.45,147.41,205.4818]
[1751798081742,4.82316947,147.44,147.41,205.4818]
[1751798081944,6.7806,147.45,147.41,205.4818]
[1751798082139,4.82316947,147.44,147.41,205.4818]
[1751798082344,6.7806,147.45,147.41,205.4818]
[1751798082546,11.60442955,147.44,147.41,205.4818]
[1751798082741,6.7807,147.44,147.41,205.4818]
[1751798085050,4.82466451,147.43,147.41,205.4818]
[1751798085239,6.7807,147.44,147.41,205.4818]
[1751798085549,4.82466707,147.43,147.41,205.4818]
[1751798085749,6.7807,147.44,147.41,205.4818]
[1751798085950,4.82489384,147.43,147.41,205.4818]
[1751798086151,6.7807,147.44,147.41,205.4818]
[1751798086351,11.60609383,147.43,147.4,252.0824]
[1751798086651,4.82545821,147.42,147.4,252.0824]
[1751798086852,6.7812,147.43,147.4,47.28]
[1751798087151,4.82574552,147.42,147.4,47.28]
[1751798087354,4.82574552,147.41,147.4,47.28]
[1751798091749,6.7818,147.42,147.4,47.28]
[1751798091950,4.83830616,147.41,147.4,47.28]
[1751798094948,6.7818,147.42,147.4,47.28]
[1751798095154,4.81671222,147.41,147.4,47.28]
[1751798095453,4.81671222,147.41,147.4,54.0625]
[1751798096053,4.81671222,147.41,147.4,47.28]
[1751798102556,4.81671222,147.41,147.4,54.0625]
[1751798102756,4.83000066,147.41,147.4,54.0625]
[1751798102960,2.2871,147.45,147.4,47.28]
[1751798103160,4.82960326,147.44,147.4,47.28]
[1751798103357,4.82960326,147.43,147.4,47.28]
[1751798103661,4.82960326,147.42,147.41,6.782]
[1751798106163,4.8304914,147.42,147.41,6.782]
[1751798108166,6.7805,147.45,147.42,6.7816]
[1751798108369,4.82999936,147.44,147.43,197.78]
[1751798119183,6.7794,147.47,147.43,197.78]
[1751798119382,4.85151352,147.46,147.43,197.78]
[1751798119684,4.85151352,147.45,147.43,197.78]
[1751798119883,2.3704,147.49,147.43,197.78]
[1751798120082,13.01401237,147.48,147.43,197.78]
[1751798120282,4.85130379,147.47,147.43,197.78]
[1751798120482,4.85130379,147.46,147.43,197.78]
[1751798120684,4.85130379,147.45,147.44,6.7807]
[1751798123287,4.85130379,147.45,147.43,204.5609]
[1751798123484,2.3704,147.49,147.43,204.5609]
[1751798123689,12.99802139,147.48,147.43,204.5609]
[1751798123885,6.78,147.46,147.43,204.5609]
[1751798124088,4.8487934,147.45,147.43,204.5609]
[1751798124387,6.78,147.46,147.43,204.5609]
[1751798124588,4.87058799,147.45,147.43,204.5609]
[1751798124784,6.78,147.46,147.43,204.5609]
[1751798124987,4.87072704,147.45,147.43,204.5609]
[1751798125282,6.78,147.46,147.43,204.5609]
[1751798125485,4.87025935,147.45,147.43,204.5609]
[1751798125683,6.78,147.46,147.43,204.5609]
[1751798125879,4.8703984,147.45,147.43,6.7809]
[1751798126078,4.8703984,147.44,147.43,6.7809]
[1751798129686,6.7804,147.45,147.43,204.4809]
[1751798132090,6.78,147.46,147.43,204.4809]
[1751798132390,4.86917952,147.45,147.43,204.4809]
[1751798132590,6.78,147.46,147.43,204.4809]
[1751798132790,4.86936436,147.45,147.43,204.4809]
[1751798132986,6.78,147.46,147.43,204.4809]
[1751798133188,4.86936436,147.45,147.43,204.4809]
[1751798133485,6.78,147.46,147.43,204.4809]
[1751798133685,4.86951997,147.45,147.43,204.4809]
[1751798133890,6.78,147.46,147.43,204.4809]
[1751798134191,4.86951997,147.45,147.43,204.4809]
[1751798134386,6.78,147.46,147.43,204.4809]
[1751798134586,4.86972636,147.45,147.43,204.4809]
[1751798134788,6.78,147.46,147.43,204.4809]
[1751798134988,4.86984525,147.45,147.43,204.4809]
[1751798135289,6.78,147.46,147.43,204.4809]
[1751798135483,4.87048275,147.45,147.43,197.7]
[1751798135688,13.03954768,147.44,147.41,244.8]
[1751798135893,4.87048275,147.43,147.41,244.8]
[1751798136091,4.87048275,147.42,147.41,47.14]
[1751798136385,4.87255944,147.42,147.41,47.14]
[1751798137593,11.65415944,147.42,147.41,47.14]
[1751798140997,6.7821,147.41,147.38,6.7833]
[1751798141392,6.7821,147.41,147.37,53.9238]
[1751798141696,6.7821,147.41,147.38,197.68]
[1751798141892,4.84156793,147.4,147.38,197.68]
[1751798142098,6.7821,147.41,147.38,197.68]
[1751798142395,4.84118369,147.4,147.38,197.68]
[1751798142598,6.7821,147.41,147.38,197.68]
[1751798142792,4.84142555,147.4,147.38,197.68]
[1751798142992,4.84142555,147.39,147.38,197.68]
[1751798144500,4.84142555,147.39,147.37,53.9238]
[1751798144703,6.7826,147.4,147.38,197.68]
[1751798145000,4.84029083,147.39,147.38,197.68]
[1751798145302,6.7826,147.4,147.38,197.68]
[1751798145901,6.7826,147.4,147.37,53.9238]
[1751798146202,6.7826,147.4,147.38,197.66]
[1751798147103,6.7823,147.41,147.38,197.66]
[1751798147304,4.80474918,147.4,147.38,197.66]
[1751798147504,6.7823,147.41,147.38,197.68]
[1751798147703,4.8048883,147.4,147.38,197.68]
[1751798147903,4.8048883,147.39,147.38,197.68]
[1751798149107,6.7823,147.41,147.38,197.68]
[1751798149306,4.82140833,147.4,147.38,197.68]
[1751798149510,4.82140833,147.39,147.38,197.68]
[1751798150108,6.7823,147.41,147.38,197.68]
[1751798150313,4.82053762,147.4,147.38,197.68]
[1751798150506,6.7823,147.41,147.38,197.68]
[1751798150703,4.82053762,147.4,147.38,197.68]
[1751798150903,6.7823,147.41,147.38,197.68]
[1751798151109,2.3191,147.44,147.38,197.68]
[1751798151410,12.92096076,147.43,147.38,197.68]
[1751798151708,6.7824,147.41,147.37,53.9238]
[1751798151908,6.7824,147.41,147.38,197.66]
[1751798152613,6.7827,147.4,147.38,197.66]
[1751798152807,2.3191,147.44,147.37,47.14]
[1751798153000,12.91996624,147.43,147.38,197.66]
[1751798153307,6.7829,147.4,147.37,244.8]
[1751798153709,2.3191,147.44,147.37,244.8]
[1751798154007,12.91761605,147.43,147.37,244.8]
[1751798154208,12.91761605,147.42,147.37,244.8]
[1751798154409,4.81854835,147.41,147.37,244.8]
[1751798154710,4.81797795,147.4,147.37,244.8]
[1751798154910,2.3191,147.44,147.37,244.8]
[1751798155210,12.90611851,147.43,147.37,244.8]
[1751798155411,12.90611851,147.42,147.37,244.8]
[1751798155611,6.7834,147.39,147.37,244.8]
[1751798163418,6.7834,147.39,147.37,47.14]
[1751798163617,6.7834,147.39,147.37,244.78]
[1751798164912,6.7834,147.39,147.38,197.64]
[1751798165112,11.57410645,147.39,147.38,197.64]
[1751798166515,6.7834,147.39,147.38,197.64]
[1751798166910,2.3191,147.44,147.38,197.64]
[1751798167108,4.79084352,147.43,147.38,197.64]
[1751798167310,4.79084352,147.42,147.38,197.64]
[1751798167510,4.79084352,147.41,147.39,6.7829]
[1751798167712,6.782,147.42,147.4,197.62]
[1751798168018,4.7908494,147.41,147.4,197.62]
[1751798171716,4.79420521,147.41,147.4,197.62]
[1751798172418,11.57630521,147.41,147.4,197.62]
[1751798177122,4.79420521,147.41,147.4,197.62]
[1751798177317,4.83440028,147.41,147.4,197.62]
[1751798178021,6.7818,147.42,147.4,197.62]
[1751798178222,4.83440028,147.41,147.4,197.62]
[1751798184135,4.84623183,147.41,147.4,197.62]
[1751798185938,11.62833183,147.41,147.4,197.62]
[1751798186134,11.62833183,147.41,147.38,6.7833]
[1751798186338,4.84623183,147.4,147.39,197.5]
[1751798187241,4.85821024,147.4,147.39,197.5]
[1751798192745,4.85821024,147.4,147.38,6.7833]
[1751798192948,4.85821024,147.39,147.38,6.7833]
[1751798193243,4.85821024,147.39,147.38,204.2233]
[1751798193436,6.7821,147.41,147.38,204.2233]
[1751798193744,4.83468583,147.4,147.38,204.2233]
[1751798194050,6.7821,147.41,147.38,204.2233]
[1751798194345,4.8345679,147.4,147.38,204.2233]
[1751798194535,6.7821,147.41,147.38,204.2233]
[1751798194734,4.83456293,147.4,147.38,204.2233]
[1751798194943,6.7821,147.41,147.38,204.2233]
[1751798195143,4.83456293,147.4,147.38,204.2233]
[1751798195343,6.7821,147.41,147.38,204.2233]
[1751798195545,4.83445023,147.4,147.38,204.2233]
[1751798195740,6.7821,147.41,147.38,204.2233]
[1751798196035,4.83445023,147.4,147.38,204.2233]
[1751798196234,6.7821,147.41,147.38,204.2233]
[1751798196542,4.83451955,147.4,147.38,204.2233]
[1751798196743,4.83451955,147.39,147.38,204.2233]
[1751798201344,6.7823,147.41,147.38,204.2233]
[1751798201545,4.83516282,147.4,147.38,204.2233]
[1751798201750,6.7823,147.41,147.38,204.2233]
[1751798202043,4.83516282,147.4,147.38,204.2233]
[1751798202247,6.7823,147.41,147.38,204.2233]
[1751798202448,4.83556378,147.4,147.38,204.2233]
[1751798202644,6.7823,147.41,147.38,204.2233]
[1751798202845,4.83556378,147.4,147.38,204.2233]
[1751798203045,6.7823,147.41,147.38,204.2233]
[1751798203247,4.83590424,147.4,147.38,204.2233]
[1751798203446,6.7823,147.41,147.38,204.2233]
[1751798203648,4.83600891,147.4,147.38,204.2233]
[1751798203844,6.7823,147.41,147.38,204.2233]
[1751798204044,4.83600891,147.4,147.38,204.2233]
[1751798204248,6.7823,147.41,147.38,204.2233]
[1751798204547,4.83650394,147.4,147.38,204.2233]
[1751798204748,6.7826,147.4,147.38,204.2233]
[1751798205048,2.3191,147.44,147.38,204.2233]
[1751798205244,12.97456328,147.43,147.38,204.2233]
[1751798205451,6.7824,147.41,147.38,204.2233]
[1751798205649,4.83650394,147.4,147.38,204.2233]
[1751798205947,6.7824,147.41,147.38,6.7833]
[1751798206148,4.83674111,147.4,147.39,197.36]
[1751798210659,4.83674111,147.4,147.39,204.143]
[1751798211353,4.89544877,147.4,147.39,204.143]
[1751798214754,4.89544877,147.4,147.39,197.36]
[1751798223965,4.89544877,147.4,147.39,204.143]
[1751798224471,1e-08,147.4,147.39,204.143]
[1751798224770,60.2140973,147.48,147.39,204.143]
[1751798224771,9.52466677,147.47,147.42,6.7815]
[1751798224966,13.09412056,147.46,147.43,197.22]
[1751798225264,8.41882654,147.45,147.43,197.22]
[1751798225570,57.08325677,147.48,147.43,197.22]
[1751798225867,13.08864795,147.47,147.43,197.22]
[1751798226068,13.08864795,147.46,147.43,197.22]
[1751798226263,15.195839,147.45,147.43,197.22]
[1751798226464,6.7802,147.45,147.43,197.22]
[1751798229271,47.55859,147.48,147.43,197.22]
[1751798229475,13.11316881,147.47,147.43,197.22]
[1751798229672,6.7812,147.43,147.41,197.18]
[1751798229870,9.52466677,147.47,147.41,197.18]
[1751798230072,13.11439095,147.46,147.41,197.18]
[1751798230374,6.781,147.44,147.41,197.18]
[1751798231567,6.7804,147.45,147.41,203.9618]
[1751798231774,8.42481326,147.44,147.41,203.9618]
[1751798231969,9.52466677,147.47,147.41,203.9618]
[1751798232175,13.13185142,147.46,147.41,203.9618]
[1751798232472,6.781,147.44,147.41,203.9618]
[1751798232874,6.781,147.44,147.41,197.18]
[1751798235877,6.781,147.44,147.4,6.7824]
[1751798236067,6.781,147.44,147.4,203.9024]
[1751798236473,4.85260565,147.43,147.4,203.9024]
[1751798236770,4.85260565,147.42,147.4,203.9024]
[1751798236974,6.781,147.44,147.4,203.9024]
[1751798237273,4.85260565,147.43,147.4,203.9024]
[1751798237473,4.85260565,147.42,147.4,203.9024]
[1751798237673,6.781,147.44,147.4,203.9024]
[1751798237876,4.85242561,147.43,147.4,203.9024]
[1751798238176,4.85242561,147.42,147.4,203.9024]
[1751798238476,6.781,147.44,147.4,203.9024]
[1751798238675,4.85227667,147.43,147.4,203.9024]
[1751798238871,4.85227667,147.42,147.4,203.9024]
[1751798239075,6.781,147.44,147.4,203.9024]
[1751798239372,4.84108663,147.43,147.4,203.9024]
[1751798239671,4.84108663,147.42,147.4,203.9024]
[1751798239866,6.7805,147.45,147.4,197.12]
[1751798240071,4.82293364,147.44,147.4,197.12]
[1751798240274,47.55859,147.48,147.4,197.12]
[1751798240578,17.969942,147.47,147.4,197.12]
[1751798240772,6.7804,147.45,147.42,6.7813]
[1751798240972,4.82174087,147.44,147.42,6.7813]
[1751798241173,6.7804,147.45,147.42,6.7813]
[1751798241470,4.82145081,147.44,147.42,6.7813]
[1751798241667,6.7804,147.45,147.42,6.7813]
[1751798241866,4.82121189,147.44,147.42,6.7813]
[1751798242069,6.7804,147.45,147.42,6.7813]
[1751798242274,4.82121189,147.44,147.42,6.7813]
[1751798242574,6.7804,147.45,147.42,6.7813]
[1751798242773,4.8208266,147.44,147.42,6.7813]
[1751798242974,6.7804,147.45,147.42,6.7813]
[1751798243174,4.8208266,147.44,147.42,6.7813]
[1751798243373,6.7804,147.45,147.42,6.7813]
[1751798243573,4.82053008,147.44,147.42,6.7813]
[1751798243774,6.7804,147.45,147.42,6.7813]
[1751798243981,4.84289979,147.44,147.42,6.7813]
[1751798244183,6.7804,147.45,147.42,6.7813]
[1751798244481,4.8426145,147.44,147.42,6.7813]
[1751798244677,6.7804,147.45,147.42,6.7813]
[1751798244878,4.84266936,147.44,147.42,6.7813]
[1751798245078,6.7804,147.45,147.42,6.7813]
[1751798245379,4.84266936,147.44,147.42,6.7813]
[1751798245580,6.7804,147.45,147.42,6.7813]
[1751798245781,4.84246013,147.44,147.42,6.7813]
[1751798245982,6.7809,147.44,147.41,6.7819]
[1751798246282,4.84277409,147.43,147.4,197.12]
[1751798246483,57.06448246,147.48,147.4,197.12]
[1751798246779,6.7815,147.43,147.4,203.9022]
[1751798247184,6.7815,147.43,147.4,6.7822]
[1751798254385,6.7809,147.44,147.41,6.782]
[1751798254584,4.82370869,147.43,147.41,6.782]
[1751798254784,6.7809,147.44,147.41,6.782]
[1751798255086,4.82370869,147.43,147.41,6.782]
[1751798255286,6.7809,147.44,147.41,6.782]
[1751798255488,4.8240794,147.43,147.41,6.782]
[1751798255688,6.7809,147.44,147.41,6.782]
[1751798255989,4.8240794,147.43,147.41,6.782]
[1751798256286,6.7809,147.44,147.41,6.782]
[1751798256486,4.82449427,147.43,147.41,6.782]
[1751798256687,6.7809,147.44,147.41,6.782]
[1751798256888,4.82449427,147.43,147.41,6.782]
[1751798257088,6.7809,147.44,147.41,6.782]
[1751798257388,4.82460802,147.43,147.41,6.782]
[1751798257589,6.7809,147.44,147.41,6.782]
[1751798257788,4.82482438,147.43,147.41,6.782]
[1751798257989,6.7809,147.44,147.41,6.782]
[1751798258190,4.82482438,147.43,147.41,6.782]
[1751798258394,6.7809,147.44,147.41,6.782]
[1751798258598,4.82519119,147.43,147.41,6.782]
[1751798258797,6.7809,147.44,147.41,6.782]
[1751798259095,4.82519119,147.43,147.41,6.782]
[1751798259396,6.7809,147.44,147.41,6.782]
[1751798259596,4.82559827,147.43,147.41,6.782]
[1751798259993,6.7809,147.44,147.41,6.782]
[1751798260190,4.82571911,147.43,147.41,6.782]
[1751798260389,6.7809,147.44,147.41,6.782]
[1751798260594,4.82617824,147.43,147.42,6.7816]
[1751798263999,4.82617824,147.43,147.41,6.782]
[1751798264199,6.7807,147.44,147.41,6.782]
[1751798264400,4.82808251,147.43,147.41,6.782]
[1751798264603,6.7807,147.44,147.41,6.782]
[1751798264796,4.82808251,147.43,147.41,6.782]
[1751798264995,6.7807,147.44,147.41,6.782]
[1751798265295,4.82808251,147.43,147.41,6.782]
[1751798265489,6.7807,147.44,147.41,6.782]
[1751798265694,4.82815682,147.43,147.41,6.782]
[1751798266001,4.82815682,147.42,147.41,6.782]
[1751798269097,4.82815682,147.42,147.4,6.7823]
[1751798269298,6.7812,147.43,147.4,6.7823]
[1751798269501,4.84302857,147.42,147.4,6.7823]
[1751798269699,6.7812,147.43,147.4,6.7823]
[1751798270004,4.84302857,147.42,147.4,6.7823]
[1751798270199,6.7812,147.43,147.4,6.7823]
[1751798270402,4.8220557,147.42,147.4,6.7823]
[1751798270701,6.7812,147.43,147.4,6.7823]
[1751798270904,4.8220557,147.42,147.4,6.7823]
[1751798271105,6.7812,147.43,147.4,6.7823]
[1751798271306,4.82212227,147.42,147.4,6.7823]
[1751798271607,6.7812,147.43,147.4,6.7823]
[1751798271804,4.82212227,147.42,147.4,6.7823]
[1751798272099,6.7812,147.43,147.4,6.7823]
[1751798272304,4.82219424,147.42,147.4,6.7823]
[1751798272504,6.7812,147.43,147.4,6.7823]
[1751798272700,4.82219424,147.42,147.4,6.7823]
[1751798272901,6.7812,147.43,147.4,6.7823]
[1751798273103,4.82219424,147.42,147.4,6.7823]
[1751798273404,6.7812,147.43,147.4,6.7823]
[1751798273604,4.8222715,147.42,147.4,6.7823]
[1751798273805,6.7812,147.43,147.4,6.7823]
[1751798274103,4.8222715,147.42,147.4,6.7823]
[1751798274303,6.7812,147.43,147.4,6.7823]
[1751798274503,4.82235431,147.42,147.4,6.7823]
[1751798274704,6.7812,147.43,147.4,6.7823]
[1751798274898,4.82235431,147.42,147.4,6.7823]
[1751798275096,6.7812,147.43,147.4,6.7823]
[1751798275297,4.82244075,147.42,147.4,6.7823]
[1751798275497,4.82256139,147.41,147.4,6.7823]
[1751798283010,4.82256139,147.41,147.4,203.5623]
[1751798284112,57.06048695,147.48,147.41,6.7817]
[1751798284309,27.44378013,147.47,147.41,6.7817]
[1751798284607,17.94188318,147.46,147.41,6.7817]
[1751798284809,6.7808,147.44,147.41,6.7817]
[1751798285012,4.81091367,147.43,147.41,6.7817]
[1751798285311,4.81091367,147.42,147.41,6.7817]
[1751798290311,4.81091367,147.42,147.36,2.2287]
[1751798290615,13.3223004,147.41,147.37,243.56]
[1751798290817,4.81091367,147.4,147.37,243.56]
[1751798291016,4.81091367,147.39,147.38,6.7835]
[1751798291210,6.7818,147.42,147.37,243.56]
[1751798291411,13.33180329,147.41,147.39,6.7827]
[1751798291715,6.7818,147.42,147.4,196.72]
[1751798292017,13.33180329,147.41,147.4,196.72]
[1751798292216,4.82333243,147.41,147.4,196.72]
[1751798294118,4.799091,147.41,147.4,196.72]
[1751798295219,4.799091,147.41,147.39,6.7827]
[1751798295413,6.7818,147.42,147.39,203.4827]
[1751798295613,4.79832201,147.41,147.39,203.4827]
[1751798295816,6.7818,147.42,147.39,203.4627]
[1751798296015,4.79832201,147.41,147.39,203.4627]
[1751798296210,6.7818,147.42,147.39,203.4627]
[1751798296414,4.79765176,147.41,147.39,203.4627]
[1751798296616,6.7818,147.42,147.39,6.7827]
[1751798296822,4.79765221,147.41,147.39,203.4627]
[1751798297016,6.7818,147.42,147.39,203.4627]
[1751798297222,11.57975221,147.41,147.39,203.4627]
[1751798297421,2.2165,147.44,147.39,203.4627]
[1751798297621,13.2888656,147.43,147.39,203.4627]
[1751798297824,13.2888656,147.42,147.39,203.4627]
[1751798298025,4.79693055,147.41,147.39,203.4627]
[1751798298226,6.7818,147.42,147.39,203.4627]
[1751798299628,6.7813,147.43,147.4,6.7825]
[1751798300129,4.78511837,147.42,147.39,196.68]
[1751798300320,6.7817,147.42,147.39,203.4627]
[1751798301227,4.77531291,147.41,147.39,203.4627]
[1751798301429,6.7817,147.42,147.39,203.4627]
[1751798301626,4.77531081,147.41,147.39,203.4627]
[1751798301824,6.7817,147.42,147.39,203.4627]
[1751798302024,4.77531081,147.41,147.39,203.4627]
[1751798302326,6.7817,147.42,147.39,203.4627]
[1751798302528,4.77531413,147.41,147.39,203.4627]
[1751798302730,6.7817,147.42,147.39,203.4627]
[1751798303130,4.77531413,147.41,147.39,203.4627]
[1751798303430,6.7817,147.42,147.39,203.4627]
[1751798303632,11.55742287,147.41,147.39,196.68]
[1751798303932,6.7821,147.41,147.39,196.68]
[1751798304226,4.77568945,147.4,147.39,196.68]
[1751798305323,6.7821,147.41,147.39,196.68]
[1751798306431,6.7821,147.41,147.39,196.62]
[1751798307925,4.77528986,147.4,147.39,196.62]
[1751798308131,4.77528986,147.4,147.39,203.403]
[1751798316138,4.77528986,147.4,147.39,6.783]
[1751798316437,4.77528986,147.4,147.39,203.363]
[1751798317835,6.7818,147.42,147.39,203.363]
[1751798318036,4.77424027,147.41,147.39,203.363]
[1751798318239,6.7818,147.42,147.39,203.363]
[1751798318440,4.77438109,147.41,147.39,203.363]
[1751798318640,6.7818,147.42,147.39,203.363]
[1751798318841,4.77438109,147.41,147.39,203.363]
[1751798319138,6.7818,147.42,147.39,203.363]
[1751798319338,4.77454125,147.41,147.39,203.363]
[1751798319540,6.7818,147.42,147.39,203.363]
[1751798319741,4.76333807,147.41,147.39,203.363]
[1751798319940,6.7818,147.42,147.39,203.363]
[1751798320137,4.76333807,147.41,147.39,203.363]
[1751798320333,6.7818,147.42,147.39,203.363]
[1751798320531,4.76351808,147.41,147.39,203.363]